fUST/lending_fUST_20240731
["ID","MTS","AMOUNT","RATE_DAILY","PERIOD"]
[333719751,1722406335981,-500.0,0.00013698,2]
[333719752,1722406336004,-500.0,0.00013698,2]
[333719753,1722406336027,-500.0,0.00013698,2]
[333719754,1722406336049,-500.0,0.00013698,2]
[333719755,1722406336074,-783.23,0.00013698,2]
[333719756,1722406336099,-500.0,0.00013698,2]
[333719757,1722406336125,-1231.66,0.00013698,2]
[333719758,1722406336149,-500.0,0.00013698,2]
[333719759,1722406336173,-500.0,0.00013698,2]
[333719760,1722406336197,-2248.39,0.00013698,2]
[333719761,1722406336221,-1890.65,0.00013698,2]
[333719762,1722406336244,-500.0,0.00013698,2]
[333719763,1722406336267,-500.0,0.00013698,2]
[333719764,1722406336290,-1805.79,0.00013698,2]
[333719765,1722406336313,-1859.38,0.00013698,2]
[333719766,1722406336337,-1676.09,0.00013698,2]
[333719767,1722406336360,-925.06,0.00013698,2]
[333719768,1722406336387,-500.0,0.00013698,2]
[333719769,1722406336411,-151.67232239,0.00013698,2]
[333719770,1722406336434,-511.7425947,0.00013698,2]
[333719771,1722406336460,-769.06,0.00013698,2]
[333719772,1722406336482,-500.0,0.00013698,2]
[333719773,1722406336506,-500.0,0.00013698,2]
[333719774,1722406336530,-2535.46,0.00013698,2]
[333719775,1722406336553,-602.3,0.00013698,2]
[333719776,1722406336578,-500.0,0.00013698,2]
[333719777,1722406336603,-8941.52,0.00013698,2]
[333719778,1722406336628,-500.0,0.00013698,2]
[333719779,1722406336651,-500.0,0.00013698,2]
[333719780,1722406336674,-198.53077676,0.00013698,2]
[333719781,1722406336698,-500.0,0.00013698,2]
[333719782,1722406336722,-500.0,0.00013698,2]
[333719783,1722406336746,-500.0,0.00013698,2]
[333719784,1722406336770,-1637.16,0.00013698,2]
[333719785,1722406336794,-683.06,0.00013698,2]
[333719786,1722406336816,-500.0,0.00013698,2]
[333719787,1722406336839,-409.627421,0.00013699,2]
[333719788,1722406336863,-3000.0,0.00013699,2]
[333719789,1722406336885,-574.3490948,0.00013699,2]
[333719790,1722406336908,-500.0,0.00013699,2]
[333719791,1722406336930,-500.0,0.00013699,2]
[333719792,1722406336953,-503.02598362,0.00013699,2]
[333719793,1722406336974,-504.02328104,0.00013872,2]
[333719794,1722406336998,-500.0,0.00013961,2]
[333719795,1722406337020,-19265.0773639,0.00013962,2]
[333719796,1722406337042,-151.0,0.00013962,2]
[333719797,1722406337065,-151.0,0.00013962,2]
[333719798,1722406337086,-312.418174,0.00013962,2]
[333719799,1722406337108,-312.418174,0.00013962,2]
[333719800,1722406337130,-151.0,0.00013962,2]
[333719801,1722406337152,-151.0,0.00013962,2]
[333719802,1722406337176,-151.0,0.00013962,2]
[333719803,1722406337199,-151.0,0.00013962,2]
[333719804,1722406337223,-151.0,0.00013962,2]
[333719805,1722406337244,-151.0,0.00013962,2]
[333719806,1722406337266,-151.0,0.00013962,2]
[333719807,1722406337288,-151.0,0.00013962,2]
[333719808,1722406337310,-159.817575,0.00013962,2]
[333719809,1722406337332,-159.817575,0.00013962,2]
[333719810,1722406337355,-77060.3094555,0.00013962,2]
[333719811,1722406337382,-500.0,0.00013969,2]
[333719812,1722406337405,-500.0,0.00013971,2]
[333719813,1722406337436,-488.2,0.00013971,2]
[333719814,1722406337458,-513.11310928,0.00013972,2]
[333719815,1722406337481,-500.0,0.00013972,2]
[333719816,1722406337504,-500.0,0.00013972,2]
[333719817,1722406337526,-631.1,0.00013972,2]
[333719818,1722406337548,-1206.45,0.00013972,2]
[333719819,1722406337569,-500.0,0.00013972,2]
[333719820,1722406337591,-500.0,0.00013972,2]
[333719821,1722406337613,-500.0,0.00013972,2]
[333719822,1722406337635,-501.35,0.00013972,2]
[333719823,1722406337659,-853.58,0.00013972,2]
[333719824,1722406337681,-500.0,0.00013972,2]
[333719825,1722406337703,-500.0,0.00013972,2]
[333719826,1722406337725,-500.0,0.00013972,2]
[333719827,1722406337747,-1477.52,0.00013972,2]
[333719828,1722406337769,-500.0,0.00013972,2]
[333719829,1722406337792,-500.0,0.00013972,2]
[333719830,1722406337814,-505.12737999,0.00013972,2]
[333719831,1722406337837,-500.0,0.00013972,2]
[333719832,1722406337860,-500.0,0.00013972,2]
[333719833,1722406337882,-500.0,0.00013972,2]
[333719834,1722406337904,-151.0,0.00013972,2]
[333719835,1722406337927,-557.52,0.00013972,2]
[333719836,1722406337949,-500.0,0.00013972,2]
[333719837,1722406337970,-500.0,0.00013972,2]
[333719838,1722406337992,-151.0,0.00013972,2]
[333719839,1722406338014,-500.0,0.00013972,2]
[333719840,1722406338036,-500.0,0.00013972,2]
[333719841,1722406338058,-500.0,0.00013972,2]
[333719842,1722406338079,-614.22,0.00013972,2]
[333719843,1722406338102,-500.0,0.00013972,2]
[333719844,1722406338125,-500.0,0.00013972,2]
[333719845,1722406338148,-500.0,0.00013972,2]
[333719846,1722406338172,-736.67,0.00013972,2]
[333719847,1722406338195,-876.69,0.00013972,2]
[333719848,1722406338218,-1298.65,0.00013972,2]
[333719849,1722406338240,-500.0,0.00013972,2]
[333719850,1722406338263,-500.0,0.00013972,2]
[333719851,1722406338285,-989.06,0.00013972,2]
[333719852,1722406338307,-586.49,0.00013972,2]
[333719853,1722406338329,-500.0,0.00013972,2]
[333719854,1722406338352,-500.0,0.00013972,2]
[333719855,1722406338375,-701.72,0.00013972,2]
[333719856,1722406338401,-500.0,0.00013972,2]
[333719857,1722406338426,-992.82,0.00013972,2]
[333719858,1722406338451,-500.0,0.00013972,2]
[333719859,1722406338654,-1238.29,0.00013972,2]
[333719860,1722406338681,-500.0,0.00013972,2]
[333719861,1722406338704,-3099.12,0.00013972,2]
[333719862,1722406338728,-500.0,0.00013972,2]
[333719863,1722406338751,-618.19,0.00013972,2]
[333719864,1722406338775,-151.0,0.00013972,2]
[333719865,1722406338798,-151.0,0.00013972,2]
[333719866,1722406338822,-1822.22,0.00013972,2]
[333719867,1722406338845,-687.2,0.00013972,2]
[333719868,1722406338868,-1425.48,0.00013972,2]
[333719869,1722406338892,-590.04,0.00013972,2]
[333719870,1722406338915,-500.0,0.00013972,2]
[333719871,1722406338938,-500.0,0.00013972,2]
[333719872,1722406338960,-500.0,0.00013972,2]
[333719873,1722406338983,-500.0,0.00013972,2]
[333719874,1722406339006,-1057.64,0.00013972,2]
[333719875,1722406339028,-500.0,0.00013972,2]
[333719876,1722406339051,-500.0,0.00013972,2]
[333719877,1722406339075,-500.0,0.00013972,2]
[333719878,1722406339098,-978.15,0.00013972,2]
[333719879,1722406339121,-500.0,0.00013972,2]
[333719880,1722406339144,-326.03432267,0.00013972,2]
[333719881,1722406339168,-912.14,0.00013972,2]
[333719882,1722406339192,-975.7,0.00013972,2]
[333719883,1722406339215,-500.0,0.00013972,2]
[333719884,1722406339239,-500.0,0.00013972,2]
[333719885,1722406339263,-500.0,0.00013972,2]
[333719886,1722406339287,-530.74,0.00013972,2]
[333719887,1722406339313,-500.0,0.00013972,2]
[333719888,1722406339337,-500.0,0.00013972,2]
[333719889,1722406339359,-500.0,0.00013972,2]
[333719890,1722406339385,-151.0,0.00013972,2]
[333719891,1722406339409,-151.0,0.00013972,2]
[333719892,1722406339432,-151.0,0.00013972,2]
[333719893,1722406339457,-151.0,0.00013972,2]
[333719894,1722406339481,-500.0,0.00013972,2]
[333719895,1722406339504,-611.1,0.00013972,2]
[333719896,1722406339528,-694.12,0.00013972,2]
[333719897,1722406339553,-12323.96,0.00013972,2]
[333719898,1722406339576,-500.0,0.00013972,2]
[333719899,1722406339599,-579.55,0.00013972,2]
[333719900,1722406339624,-500.0,0.00013972,2]
[333719901,1722406339646,-586.26,0.00013972,2]
[333719902,1722406339672,-680.65,0.00013972,2]
[333719903,1722406339696,-312.418174,0.00013972,2]
[333719904,1722406339719,-312.418174,0.00013972,2]
[333719905,1722406339742,-568.45,0.00013972,2]
[333719906,1722406339764,-312.418174,0.00013972,2]
[333719907,1722406339787,-500.0,0.00013972,2]
[333719908,1722406339809,-312.418174,0.00013972,2]
[333719909,1722406339832,-500.0,0.00013972,2]
[333719910,1722406339856,-4257.11,0.00013972,2]
[333719911,1722406339882,-204.82706341,0.00013972,2]
[333719912,1722406339904,-500.0,0.00013972,2]
[333719913,1722406339928,-500.0,0.00013972,2]
[333719914,1722406339953,-889.3,0.00013972,2]
[333719915,1722406339976,-276.23406306,0.00013972,2]
[333719916,1722406340000,-500.0,0.00013972,2]
[333719917,1722406340023,-1209.35,0.00013972,2]
[333719918,1722406340046,-550.75,0.00013972,2]
[333719919,1722406340069,-1260.45,0.00013972,2]
[333719920,1722406340091,-500.0,0.00013972,2]
[333719921,1722406340113,-500.0,0.00013972,2]
[333719922,1722406340135,-1709.1,0.00013972,2]
[333719923,1722406340158,-500.0,0.00013972,2]
[333719924,1722406340181,-500.0,0.00013972,2]
[333719925,1722406340203,-528.39673855,0.00013972,2]
[333719926,1722406340226,-738.6,0.00013972,2]
[333719927,1722406340249,-638.4,0.00013972,2]
[333719928,1722406340271,-1858.74,0.00013972,2]
[333719929,1722406340294,-500.0,0.00013972,2]
[333719930,1722406340316,-966.12,0.00013972,2]
[333719931,1722406340339,-3763.24,0.00013972,2]
[333719932,1722406340364,-10331.49,0.00013972,2]
[333719933,1722406340390,-151.0,0.00013972,2]
[333719934,1722406340416,-500.0,0.00013972,2]
[333719935,1722406340439,-1305.43,0.00013972,2]
[333719936,1722406340462,-151.0,0.00013972,2]
[333719937,1722406340486,-500.0,0.00013972,2]
[333719938,1722406340510,-818.09,0.00013972,2]
[333719939,1722406340535,-202.56169854,0.00013972,2]
[333719940,1722406340557,-500.0,0.00013972,2]
[333719941,1722406340579,-151.0,0.00013972,2]
[333719942,1722406340601,-233.77524,0.00013972,2]
[333719943,1722406340623,-827.52,0.00013972,2]
[333719944,1722406340646,-1586.88,0.00013972,2]
[333719945,1722406340669,-500.0,0.00013972,2]
[333719946,1722406340691,-1981.82,0.00013972,2]
[333719947,1722406340715,-500.0,0.00013972,2]
[333719948,1722406340738,-734.51,0.00013972,2]
[333719949,1722406340761,-299.27040077,0.00013972,2]
[333719950,1722406340785,-500.0,0.00013972,2]
[333719951,1722406340806,-525.32,0.00013972,2]
[333719952,1722406340830,-500.0,0.00013972,2]
[333719953,1722406340854,-500.0,0.00013972,2]
[333719954,1722406340876,-512.97098069,0.00013972,2]
[333719955,1722406340901,-6886.31,0.00013972,2]
[333719956,1722406340928,-500.0,0.00013972,2]
[333719957,1722406340953,-1464.1,0.00013972,2]
[333719958,1722406340978,-2692.7,0.00013972,2]
[333719959,1722406341003,-500.0,0.00013972,2]
[333719960,1722406341027,-1536.02,0.00013972,2]
[333719961,1722406341052,-1127.91,0.00013972,2]
[333719962,1722406341075,-151.0,0.00013972,2]
[333719963,1722406341098,-634.57,0.00013972,2]
[333719964,1722406341122,-1520.35,0.00013972,2]
[333719965,1722406341146,-500.0,0.00013972,2]
[333719966,1722406341178,-378.5948523,0.00013972,2]
[333719967,1722406341203,-1177.11,0.00013972,2]
[333719968,1722406341225,-500.0,0.00013972,2]
[333719969,1722406341247,-500.0,0.00013972,2]
[333719970,1722406341271,-4200.07,0.00013972,2]
[333719971,1722406341295,-500.0,0.00013972,2]
[333719972,1722406341317,-695.32,0.00013972,2]
[333719973,1722406341339,-500.0,0.00013972,2]
[333719974,1722406341360,-1135.66,0.00013972,2]
[333719975,1722406341386,-500.0,0.00013972,2]
[333719976,1722406341412,-1179.75,0.00013972,2]
[333719977,1722406341435,-1003.64,0.00013972,2]
[333719978,1722406341459,-784.88,0.00013972,2]
[333719979,1722406341480,-859.92,0.00013972,2]
[333719980,1722406341502,-1247.07,0.00013972,2]
[333719981,1722406341524,-500.0,0.00013972,2]
[333719982,1722406341546,-500.0,0.00013972,2]
[333719983,1722406341569,-663.6,0.00013972,2]
[333719984,1722406341591,-500.0,0.00013972,2]
[333719985,1722406341613,-500.0,0.00013972,2]
[333719986,1722406341635,-513.3,0.00013972,2]
[333719987,1722406341656,-1054.12,0.00013972,2]
[333719988,1722406341689,-1871.96,0.00013972,2]
[333719989,1722406341715,-151.0,0.00013972,2]
[333719990,1722406341918,-1500.23,0.00013972,2]
[333719991,1722406341942,-151.0,0.00013972,2]
[333719992,1722406341966,-1305.58,0.00013972,2]
[333719993,1722406341988,-151.0,0.00013972,2]
[333719994,1722406342009,-500.0,0.00013972,2]
[333719995,1722406342031,-500.0,0.00013972,2]
[333719996,1722406342054,-500.0,0.00013972,2]
[333719997,1722406342076,-783.23,0.00013972,2]
[333719998,1722406342099,-500.0,0.00013972,2]
[333719999,1722406342122,-1231.66,0.00013972,2]
[333720000,1722406342146,-500.0,0.00013972,2]
[333720001,1722406342174,-2248.39,0.00013972,2]
[333720002,1722406342197,-151.0,0.00013972,2]
[333720003,1722406342219,-1890.65,0.00013972,2]
[333720004,1722406342242,-500.0,0.00013972,2]
[333720005,1722406342265,-1805.79,0.00013972,2]
[333720006,1722406342287,-1859.38,0.00013972,2]
[333720007,1722406342309,-1676.09,0.00013972,2]
[333720008,1722406342331,-925.06,0.00013972,2]
[333720009,1722406342353,-769.06,0.00013972,2]
[333720010,1722406342375,-500.0,0.00013972,2]
[333720011,1722406342402,-602.3,0.00013972,2]
[333720012,1722406342432,-500.0,0.00013972,2]
[333720013,1722406342456,-2535.46,0.00013972,2]
[333720014,1722406342480,-151.0,0.00013972,2]
[333720015,1722406342504,-8941.52,0.00013972,2]
[333720016,1722406342528,-500.0,0.00013972,2]
[333720017,1722406342551,-500.0,0.00013972,2]
[333720018,1722406342573,-500.0,0.00013972,2]
[333720019,1722406342594,-500.0,0.00013972,2]
[333720020,1722406342615,-500.0,0.00013972,2]
[333720021,1722406342637,-1637.16,0.00013972,2]
[333720022,1722406342664,-159.817575,0.00013972,2]
[333720023,1722406342686,-159.817575,0.00013972,2]
[333720024,1722406342707,-683.06,0.00013972,2]
[333720025,1722406342729,-500.0,0.00013972,2]
[333720026,1722406342751,-159.817575,0.00013972,2]
[333720027,1722406342773,-159.817575,0.00013972,2]
[333720028,1722406342794,-201.44025329,0.00013975,2]
[333720029,1722406342815,-367.7265943,0.00013988,2]
[333720030,1722406342837,-5320.85858214,0.00014017,2]
[333720031,1722406342860,-11235.03989558,0.00014132,2]
[333720093,1722407433103,-179.42,0.00010959,2]
[333720094,1722407433113,-177.753249,0.00012101,2]
[333720095,1722407433127,-120.08423178,0.00012419,2]
[333720109,1722407438856,-39.84704762,0.00012419,2]
[333720110,1722407438866,-467.22777048,0.000125,2]
[333720112,1722407438880,-300.0,0.00012535,2]
[333720113,1722407438890,-300.0,0.00012535,2]
[333720114,1722407438901,-4038.69519115,0.00012536,2]
[333720115,1722407438915,-16921.70635968,0.00012536,2]
[333720116,1722407438932,-302.508594,0.00012536,2]
[333720126,1722407442887,-3637.08985517,0.00012536,2]
[333720127,1722407442896,-177.753249,0.00012651,2]
[333720128,1722407442906,-1205.28738591,0.0001289,2]
[333720130,1722407442916,-159.653377,0.00012986,2]
[333720132,1722407442926,-177.753249,0.00013201,2]
[333720134,1722407442936,-500.0,0.00013543,2]
[333720136,1722407442945,-1561.02676778,0.00013588,2]
[333720137,1722407442954,-275.30079312,0.00013597,2]
[333720138,1722407442964,-1645.57577404,0.00013598,2]
[333720139,1722407442973,-275.30079312,0.00013666,2]
[333720140,1722407442984,-999.999999,0.00013684,2]
[333720141,1722407442993,-23509.40842998,0.00013688,2]
[333720143,1722407443006,-1741.99341645,0.00013688,2]
[333720149,1722407443100,-53512.79703953,0.00013688,2]
[333720150,1722407443112,-20000.261286,0.00013688,2]
[333720151,1722407443123,-635.16421485,0.00013688,2]
[333720152,1722407443141,-4026.42407446,0.00013688,2]
[333720155,1722407443526,-773.56943499,0.00013688,2]
[333720156,1722407443538,-1590.33093518,0.00013688,2]
[333720157,1722407443550,-2095.08016293,0.00013688,2]
[333720166,1722407469894,155.69050852,0.00025,60]
[333720179,1722407600823,465.21,0.00027,120]
[333723344,1722408632096,-189.34483429,0.00011124,2]
[333723345,1722408632106,-177.753249,0.00011224,2]
[333723348,1722408632116,-300.0,0.00011417,2]
[333723349,1722408632125,-672.96729443,0.00011418,2]
[333723376,1722408638741,-11257.03314499,0.00011418,2]
[333723377,1722408638834,-12969.99956058,0.00011418,2]
[333723378,1722408638845,-161.373556,0.00011941,2]
[333723379,1722408638857,-161.373556,0.00011985,2]
[333723380,1722408638868,-161.373556,0.0001203,2]
[333723381,1722408638878,-161.373556,0.00012074,2]
[333723382,1722408638889,-161.373556,0.00012119,2]
[333723383,1722408638899,-161.373556,0.00012163,2]
[333723384,1722408638909,-161.373556,0.00012208,2]
[333723385,1722408638919,-161.373556,0.00012252,2]
[333723386,1722408638929,-161.373556,0.00012296,2]
[333723387,1722408638939,-161.373556,0.00012341,2]
[333723388,1722408638948,-153.0,0.00012356,2]
[333723389,1722408638958,-590.7706366,0.00012356,2]
[333723390,1722408638967,-161.373556,0.00012385,2]
[333723391,1722408638977,-161.373556,0.0001243,2]
[333723392,1722408638986,-153.0,0.00012456,2]
[333723393,1722408638996,-161.373556,0.00012474,2]
[333723394,1722408639006,-161.373556,0.00012519,2]
[333723395,1722408639015,-420.0,0.00012558,2]
[333723396,1722408639024,-161.373556,0.00012563,2]
[333723397,1722408639034,-306.0,0.000129,2]
[333723398,1722408639043,-206.8816348,0.000129,2]
[333723399,1722408639052,-206.8816348,0.000129,2]
[333723400,1722408639062,-153.0,0.00012978,2]
[333723401,1722408639072,-159.653377,0.00012986,2]
[333723402,1722408639081,-1365.89842179,0.00013078,2]
[333723403,1722408639091,-307.5336587,0.00013151,2]
[333723404,1722408639101,-306.0,0.00013151,2]
[333723405,1722408639110,-206.8295614,0.00013151,2]
[333723406,1722408639120,-153.0,0.00013178,2]
[333723407,1722408639130,-153.06260706,0.0001321,2]
[333723408,1722408639140,-367.7265943,0.00013266,2]
[333723409,1722408639149,-5310.91571796,0.00013392,2]
[333723410,1722408639159,-4316.48131715,0.00013598,2]
[333723411,1722408639169,-200.0,0.00013598,2]
[333723412,1722408639180,-1126.03,0.00013687,2]
[333723413,1722408639189,-1126.03,0.00013687,2]
[333723414,1722408639200,-1126.03,0.00013687,2]
[333723415,1722408639216,-1126.03,0.00013687,2]
[333723416,1722408639226,-27561.5814759,0.00013688,2]
[333723417,1722408639237,-26814.96987757,0.00013688,5]
[333723418,1722408639248,-165369.488855,0.00013688,2]
[333723419,1722408639258,-1126.03,0.00013697,2]
[333723420,1722408639268,-1126.03,0.00013697,2]
[333723421,1722408639279,-1126.03,0.00013697,2]
[333723422,1722408639289,-1126.03,0.00013697,2]
[333723423,1722408639299,-1126.03,0.00013697,2]
[333723424,1722408639310,-1126.03,0.00013697,2]
[333723425,1722408639321,-45420.02618923,0.00013698,5]
[333723426,1722408639515,-170.37125402,0.00013698,2]
[333723427,1722408639525,-500.0,0.00013698,2]
[333723428,1722408639535,-501.15823509,0.00013698,2]
[333723429,1722408639545,-500.0,0.00013698,2]
[333723430,1722408639554,-200.48393973,0.00013698,2]
[333723431,1722408639564,-500.0,0.00013698,2]
[333723432,1722408639573,-500.0,0.00013698,2]
[333723433,1722408639583,-553.13283947,0.00013698,2]
[333723434,1722408639593,-500.0,0.00013698,2]
[333723435,1722408639603,-500.0,0.00013698,2]
[333723436,1722408639612,-500.0,0.00013698,2]
[333723438,1722408639622,-300.67140275,0.00013698,2]
[333723440,1722408639631,-500.0,0.00013698,2]
[333723441,1722408639643,-500.0,0.00013698,2]
[333723442,1722408639652,-500.0,0.00013698,2]
[333723443,1722408639662,-500.0,0.00013698,2]
[333723444,1722408639671,-185.59673064,0.00013698,2]
[333723445,1722408639683,-436.72173934,0.00013698,2]
[333723446,1722408639692,-158.54426512,0.00013698,2]
[333723447,1722408639702,-500.0,0.00013698,2]
[333723448,1722408639712,-408.66553673,0.00013698,2]
[333723449,1722408639722,-500.0,0.00013698,2]
[333723450,1722408639732,-500.0,0.00013698,2]
[333723451,1722408639741,-500.0,0.00013698,2]
[333723452,1722408639751,-500.0,0.00013698,2]
[333723453,1722408639762,-500.0,0.00013698,2]
[333723454,1722408639772,-500.0,0.00013698,2]
[333723455,1722408639783,-591.79766456,0.00013698,2]
[333723456,1722408639793,-500.0,0.00013698,2]
[333723457,1722408639804,-501.21567521,0.00013698,2]
[333723458,1722408639813,-500.0,0.00013698,2]
[333723461,1722408639823,-501.0442106,0.00013698,2]
[333723464,1722408639834,-500.0,0.00013698,2]
[333723467,1722408639844,-562.4,0.00013698,2]
[333723470,1722408639853,-1538.59,0.00013698,2]
[333723473,1722408639863,-500.0,0.00013698,2]
[333723476,1722408639873,-500.0,0.00013698,2]
[333723479,1722408639883,-500.0,0.00013698,2]
[333723482,1722408639895,-638.57,0.00013698,2]
[333723486,1722408639905,-500.0,0.00013698,2]
[333723489,1722408639915,-492.15067287,0.00013698,2]
[333723493,1722408639924,-500.0,0.00013698,2]
[333723498,1722408639934,-500.0,0.00013698,2]
[333723501,1722408639944,-500.0,0.00013698,2]
[333723504,1722408639954,-500.0,0.00013698,2]
[333723507,1722408639964,-500.0,0.00013698,2]
[333723510,1722408639975,-500.0,0.00013698,2]
[333723513,1722408639984,-500.0,0.00013698,2]
[333723515,1722408639993,-501.3352402,0.00013698,2]
[333723517,1722408640004,-500.0,0.00013698,2]
[333723519,1722408640014,-507.41780141,0.00013698,2]
[333723521,1722408640025,-731.64,0.00013698,2]
[333723523,1722408640035,-511.06721115,0.00013698,2]
[333723525,1722408640045,-513.01,0.00013698,2]
[333723528,1722408640055,-500.0,0.00013698,2]
[333723530,1722408640065,-500.0,0.00013698,2]
[333723531,1722408640076,-500.0,0.00013698,2]
[333723533,1722408640085,-509.59509646,0.00013698,2]
[333723535,1722408640095,-500.0,0.00013698,2]
[333723537,1722408640106,-508.45909967,0.00013698,2]
[333723539,1722408640116,-500.0,0.00013698,2]
[333723542,1722408640126,-500.0,0.00013698,2]
[333723544,1722408640137,-500.0,0.00013698,2]
[333723546,1722408640146,-500.0,0.00013698,2]
[333723548,1722408640156,-500.0,0.00013698,2]
[333723550,1722408640165,-500.0,0.00013698,2]
[333723552,1722408640175,-500.0,0.00013698,2]
[333723554,1722408640185,-500.0,0.00013698,2]
[333723556,1722408640196,-518.36868176,0.00013698,2]
[333723558,1722408640210,-500.0,0.00013698,2]
[333723560,1722408640221,-510.54420126,0.00013698,2]
[333723562,1722408640231,-500.0,0.00013698,2]
[333723564,1722408640242,-500.0,0.00013698,2]
[333723566,1722408640252,-500.0,0.00013698,2]
[333723568,1722408640263,-500.0,0.00013698,2]
[333723570,1722408640273,-961.72,0.00013698,2]
[333723571,1722408640284,-500.0,0.00013698,2]
[333723573,1722408640297,-500.0,0.00013698,2]
[333723575,1722408640307,-500.0,0.00013698,2]
[333723577,1722408640318,-500.0,0.00013698,2]
[333723579,1722408640328,-500.0,0.00013698,2]
[333723581,1722408640338,-500.0,0.00013698,2]
[333723583,1722408640348,-500.0,0.00013698,2]
[333723585,1722408640358,-500.0,0.00013698,2]
[333723587,1722408640368,-500.0,0.00013698,2]
[333723589,1722408640378,-590.78517009,0.00013698,2]
[333723591,1722408640390,-303.36954347,0.00013698,2]
[333723593,1722408640400,-500.0,0.00013698,2]
[333723595,1722408640411,-863.73,0.00013698,2]
[333723597,1722408640421,-500.0,0.00013698,2]
[333723599,1722408640431,-2628.91,0.00013698,2]
[333723601,1722408640441,-500.0,0.00013698,2]
[333723603,1722408640450,-500.0,0.00013698,2]
[333723605,1722408640460,-500.0,0.00013698,2]
[333723608,1722408640471,-500.0,0.00013698,2]
[333723610,1722408640482,-1130.35,0.00013698,2]
[333723612,1722408640493,-500.0,0.00013698,2]
[333723614,1722408640503,-500.0,0.00013698,2]
[333723616,1722408640514,-500.0,0.00013698,2]
[333723618,1722408640526,-593.75,0.00013698,2]
[333723620,1722408640536,-500.0,0.00013698,2]
[333723622,1722408640547,-1452.52,0.00013698,2]
[333723624,1722408640557,-500.0,0.00013698,2]
[333723626,1722408640567,-500.0,0.00013698,2]
[333723628,1722408640578,-2861.69,0.00013698,2]
[333723631,1722408640589,-500.0,0.00013698,2]
[333723633,1722408640599,-500.0,0.00013698,2]
[333723635,1722408640608,-919.56,0.00013698,2]
[333723637,1722408640618,-500.0,0.00013698,2]
[333723639,1722408640628,-500.0,0.00013698,2]
[333723641,1722408640639,-500.0,0.00013698,2]
[333723642,1722408640649,-500.0,0.00013698,2]
[333723645,1722408640659,-500.0,0.00013698,2]
[333723647,1722408640671,-912.43,0.00013698,2]
[333723649,1722408640681,-500.0,0.00013698,2]
[333723651,1722408640691,-500.0,0.00013698,2]
[333723653,1722408640703,-500.0,0.00013698,2]
[333723656,1722408640714,-500.0,0.00013698,2]
[333723659,1722408640723,-500.0,0.00013698,2]
[333723662,1722408640733,-500.0,0.00013698,2]
[333723664,1722408640742,-500.0,0.00013698,2]
[333723666,1722408640752,-500.0,0.00013698,2]
[333723668,1722408640763,-500.0,0.00013698,2]
[333723670,1722408640772,-500.0,0.00013698,2]
[333723672,1722408640781,-500.0,0.00013698,2]
[333723674,1722408640791,-980.43,0.00013698,2]
[333723676,1722408640804,-500.0,0.00013698,2]
[333723678,1722408640815,-500.0,0.00013698,2]
[333723680,1722408640824,-500.0,0.00013698,2]
[333723683,1722408640836,-500.0,0.00013698,2]
[333723684,1722408640846,-500.0,0.00013698,2]
[333723685,1722408640856,-576.3983284,0.00013698,2]
[333723686,1722408640865,-1000.85,0.00013698,2]